Workbook

Sheet Indirect Static Grouping
A1: Input values
A2: S | B2: 2
A3: T | B3: 0.9701988697
A4: min ti* | B4: =MIN(F12:F34) -> 0.723204931
A5: S/T | B5: =S/T -> 2.061433034
A6: S indiv. | B6: =SUM(L12:L35) -> 6.699272778
A7: C(T,l) | B7: =B5+B6 -> 8.760705812
A8: Best | B8: 8.760705634
A9: Result | B9: Not improved
A11: # | B11: ai | C11: MTTFi | D11: CPi | E11: CUi | F11: ti* | G11: Fi* | H11: Near. Int | I11: li | J11: liT | K11: lE(liT) | L11: CPi/(liT) + CUi lE(liT)
A12: 1 | B12: 3 | C12: 4 | D12: 2 | E12: 5 | F12: 2.7 | G12: =D12/F12+LambdaE(F12,C12,B12)*E12 -> 1.146288673 | H12: =INT(F12/$B$4+0.5) -> 4 | I12: 3 | J12: =I12*T -> 2.910596609 | K12: =LambdaE(J12,C12,B12) -> 0.09425592965 | L12: =D12/(I12*T)+E12*K12 -> 1.158423993
A13: 2 | B13: 3 | C13: 3 | D13: 1 | E13: 50 | F13: 0.723204931 | G13: =D13/F13+LambdaE(F13,C13,B13)*E13 -> 2.072423397 | H13: =INT(F13/$B$4+0.5) -> 1 | I13: 1 | J13: =I13*T -> 0.9701988697 | K13: =LambdaE(J13,C13,B13) -> 0.02482460699 | L13: =D13/(I13*T)+E13*K13 -> 2.271946866
A14: 3 | B14: 3 | C14: 3 | D14: 3 | E14: 10 | F14: 1.797885451 | G14: =D14/F14+LambdaE(F14,C14,B14)*E14 -> 2.521108208 | H14: 2 | I14: 2 | J14: =I14*T -> 1.940397739 | K14: 0.09929842794 | L14: =D14/(I14*T)+E14*K14 -> 2.539059055
A15: 4 | B15: 3 | C15: 5 | D15: 1 | E15: 10 | F15: 2.030191491 | G15: =D15/F15+LambdaE(F15,C15,B15)*E15 -> 0.7273592311 | H15: 3 | I15: 2 | J15: =I15*T -> 1.940397739 | K15: 0.02144846044 | L15: =D15/(I15*T)+E15*K15 -> 0.729842863
F16: SiFi*= | G16: =SUM(G12:G15) -> 6.467179509
